[Event "Charlotte Fall IM-C 2023"]
[Site "Charlotte"]
[Date "2023.11.21"]
[Round "9.1"]
[White "Nandhakumar, Vaseegaran"]
[Black "Vemparala, Nikash"]
[Result "1-0"]
[ECO "A06"]
[WhiteElo "2177"]
[BlackElo "2257"]
[Annotator "RC"]
[PlyCount "71"]
[EventDate "2023.11.17"]
[EventType "tourn"]
[EventCountry "USA"]
[SourceTitle "playchess.com"]
[Source "ChessBase"]
[SourceQuality "1"]
[TimeControl "5400+30"]

1. Nf3 {[%emt 0:00:10]} d5 {[%emt 0:00:36]} 2. b3 {[%emt 0:00:17]} Nf6 {[%emt 0:04:05]} 3. Bb2 {[%emt 0:00:19]} c5 {[%emt 0:01:54]} 4. e3 {[%emt 0:01:38]} Nc6 {[%emt 0:02:39]} 5. Bb5 {[%emt 0:01:50]} a6 {[%emt 0:02:46]} 6. Bxc6+ {[%emt 0:00:19]} bxc6 {[%emt 0:00:33]} 7. O-O {[%emt 0:00:12]} Bg4 {[%emt 0:02:28]} 8. h3 {[%emt 0:00:50]} Bh5 {[%emt 0:09:43]} 9. g4 {[%emt 0:01:51]} Bg6 {[%emt 0:02:12]} 10. Ne5 {[%emt 0:00:19]} h5 {[%emt 0:03:40]} 11. g5 {[%emt 0:17:08]} Ne4 {[%emt 0:01:03]} 12. Nxg6 {[%emt 0:01:59]} fxg6 {[%emt 0:00:45]} 13. f4 {[%emt 0:02:32]} e6 {[%emt 0:18:59]} 14. Qf3 {[%emt 0:04:28]} Qd7 {[%emt 0:10:59]} 15. d3 {[%emt 0:02:14]} Nd6 {[%emt 0:00:12]} 16. Nc3 {[%emt 0:00:26]} Nf5 {[%emt 0:06:49]} 17. Na4 {[%emt 0:01:45]} Qa7 {[%emt 0:01:56]} 18. c4 {[%emt 0:02:09]} Nd6 {[%emt 0:13:04]} 19. Rac1 {[%emt 0:02:45]} Rc8 {[%emt 0:01:19]} 20. e4 {[%emt 0:08:02]} d4 {[%emt 0:00:39]} 21. Ba3 {[%emt 0:00:28]} Nf7 {[%emt 0:01:08]} 22. f5 {[%emt 0:04:36]} Ne5 {[%emt 0:04:02]} 23. Qg3 {[%emt 0:01:39]} Qc7 {[%emt 0:02:30]} 24. Rcd1 {[%emt 0:03:18]} Bd6 {[%emt 0:02:27]} 25. Qg2 {[%emt 0:04:13]} exf5 {[%emt 0:03:31]} 26. Bxc5 {[%emt 0:02:19]} Bxc5 {[%emt 0:00:09]} 27. Nxc5 {[%emt 0:00:12]} Qe7 {[%emt 0:00:02]} 28. b4 {[%emt 0:02:59]} O-O {[%emt 0:00:26]} 29. exf5 {[%emt 0:00:41]} Rxf5 {[%emt 0:02:13]} 30. Rxf5 {[%emt 0:08:49]} gxf5 {[%emt 0:00:02]} 31. Nxa6 {[%emt 0:00:01]} f4 {[%emt 0:00:46]} 32. Nc5 {[%emt 0:04:08]} f3 {[%emt 0:02:16]} 33. Qg3 {[%emt 0:00:03]} f2+ {[%emt 0:00:29]} 34. Qxf2 {[%emt 0:00:51]} Qxg5+ {[%emt 0:00:13]} 35. Kh1 {[%emt 0:00:03]} Rf8 {[%emt 0:00:31]} 36. Qxf8+ {[%emt 0:00:05]} 1-0

[Event "Charlotte Fall IM-C 2023"]
[Site "Charlotte"]
[Date "2023.11.21"]
[Round "9.2"]
[White "Song, Ethan"]
[Black "Graif, William"]
[Result "1-0"]
[ECO "B38"]
[WhiteElo "2176"]
[BlackElo "2289"]
[Annotator "RC"]
[PlyCount "83"]
[EventDate "2023.11.17"]
[EventType "tourn"]
[EventCountry "USA"]
[SourceTitle "playchess.com"]
[Source "ChessBase"]
[SourceQuality "1"]
[TimeControl "5400+30"]

1. e4 {[%emt 0:00:07]} c5 {[%emt 0:00:14]} 2. Nf3 {[%emt 0:00:25]} g6 {[%emt 0:00:13]} 3. d4 {[%emt 0:00:38]} cxd4 {[%emt 0:00:16]} 4. Nxd4 {[%emt 0:00:09]} Nc6 {[%emt 0:00:12]} 5. c4 {[%emt 0:00:09]} Nf6 {[%emt 0:00:27]} 6. Nc3 {[%emt 0:00:46]} d6 {[%emt 0:00:08]} 7. Be2 {[%emt 0:00:42]} Bg7 {[%emt 0:03:52]} 8. Be3 {[%emt 0:01:24]} O-O {[%emt 0:00:12]} 9. O-O {[%emt 0:01:16]} Bd7 {[%emt 0:00:34]} 10. f3 {[%emt 0:00:35]} Nxd4 {[%emt 0:14:58]} 11. Bxd4 {[%emt 0:00:09]} a5 {[%emt 0:02:00]} 12. Rb1 {[%emt 0:05:28]} Bc6 {[%emt 0:01:44]} 13. Kh1 {[%emt 0:02:46]} Nd7 {[%emt 0:09:26]} 14. Be3 {[%emt 0:03:08]} Bxc3 {[%emt 0:16:17]} 15. bxc3 {[%emt 0:00:15]} f6 {[%emt 0:01:11]} 16. Qe1 {[%emt 0:07:03]} a4 {[%emt 0:02:25]} 17. c5 {[%emt 0:09:41]} Nxc5 {[%emt 0:00:19]} 18. Bc4+ {[%emt 0:00:33]} Kh8 {[%emt 0:00:15]} 19. Bh6 {[%emt 0:00:51]} Qa5 {[%emt 0:03:08]} 20. Bxf8 {[%emt 0:00:29]} Rxf8 {[%emt 0:00:06]} 21. Qe3 {[%emt 0:01:50]} Kg7 {[%emt 0:02:18]} 22. Rb4 {[%emt 0:06:38]} Rc8 {[%emt 0:09:02]} 23. Rfb1 {[%emt 0:01:36]} Bd7 {[%emt 0:08:22]} 24. f4 {[%emt 0:01:56]} Bc6 {[%emt 0:09:43]} 25. Bb5 {[%emt 0:02:08]} e5 {[%emt 0:01:33]} 26. fxe5 {[%emt 0:02:08]} fxe5 {[%emt 0:00:10]} 27. Bxc6 {[%emt 0:01:42]} Rxc6 {[%emt 0:00:02]} 28. Qg5 {[%emt 0:01:02]} Qc7 {[%emt 0:00:50]} 29. Rf1 {[%emt 0:00:25]} Nd3 {[%emt 0:10:27]} 30. Qf6+ {[%emt 0:17:36]} Kh6 {[%emt 0:00:02]} 31. Qf8+ {[%emt 0:03:03]} Qg7 {[%emt 0:00:16]} 32. Qf3 {[%emt 0:03:38]} Nf4 {[%emt 0:00:46]} 33. g3 {[%emt 0:00:38]} Ne6 {[%emt 0:01:50]} 34. Qe3+ {[%emt 0:00:24]} g5 {[%emt 0:02:07]} 35. Rxa4 {[%emt 0:00:18]} Qe7 {[%emt 0:01:11]} 36. Ra8 {[%emt 0:00:32]} Kg7 {[%emt 0:00:03]} 37. Qf3 {[%emt 0:03:13]} h6 {[%emt 0:00:37]} 38. Rb8 {[%emt 0:05:18]} Rb6 {[%emt 0:00:25]} 39. a4 {[%emt 0:01:10]} Ra6 {[%emt 0:00:41]} 40. Qd3 {[%emt 0:02:48]} Qc7 {[%emt 0:00:58]} 41. Re8 {[%emt 0:02:40]} Nd8 {[%emt 0:01:06]} 42. Qf3 {[%emt 0:00:20]} 1-0

[Event "Charlotte Fall IM-C 2023"]
[Site "Charlotte"]
[Date "2023.11.21"]
[Round "9.3"]
[White "Bhagat Kush"]
[Black "Fierro Baquero, Martha L."]
[Result "0-1"]
[ECO "A41"]
[WhiteElo "2209"]
[BlackElo "2306"]
[Annotator "RC"]
[PlyCount "142"]
[EventDate "2023.11.17"]
[EventType "tourn"]
[EventCountry "USA"]
[SourceTitle "playchess.com"]
[Source "ChessBase"]
[SourceQuality "1"]
[TimeControl "5400+30"]

1. d4 {[%emt 0:11:12]} g6 {[%emt 0:00:03]} 2. Bf4 {[%emt 0:02:23]} Bg7 {[%emt 0:01:49]} 3. e3 {[%emt 0:00:11]} d6 {[%emt 0:01:14]} 4. Nf3 {[%emt 0:00:12]} Bg4 {[%emt 0:01:25]} 5. Be2 {[%emt 0:03:15]} Nd7 {[%emt 0:00:41]} 6. h3 {[%emt 0:00:53]} Bxf3 {[%emt 0:00:05]} 7. Bxf3 {[%emt 0:00:10]} c6 {[%emt 0:04:13]} 8. c3 {[%emt 0:00:38]} Ngf6 {[%emt 0:01:01]} 9. Nd2 {[%emt 0:00:18]} O-O {[%emt 0:00:08]} 10. O-O {[%emt 0:00:05]} Re8 {[%emt 0:05:05]} 11. Bh2 {[%emt 0:00:36]} d5 {[%emt 0:03:30]} 12. Qb3 {[%emt 0:22:05]} Qb6 {[%emt 0:04:07]} 13. c4 {[%emt 0:02:46]} Qxb3 {[%emt 0:08:19]} 14. Nxb3 {[%emt 0:03:52]} e5 {[%emt 0:07:07]} 15. Na5 {[%emt 0:12:44]} exd4 {[%emt 0:05:02]} 16. exd4 {[%emt 0:01:34]} Ne4 {[%emt 0:00:05]} 17. Rad1 {[%emt 0:05:47]} Ng5 {[%emt 0:01:27]} 18. Rd2 {[%emt 0:07:46]} Nxf3+ {[%emt 0:03:25]} 19. gxf3 {[%emt 0:00:08]} Nb6 {[%emt 0:05:56]} 20. c5 {[%emt 0:04:39]} Nc4 {[%emt 0:00:03]} 21. Nxc4 {[%emt 0:00:05]} dxc4 {[%emt 0:00:04]} 22. Rc1 {[%emt 0:00:20]} Bh6 {[%emt 0:00:04]} 23. f4 {[%emt 0:00:03]} Re4 {[%emt 0:00:03]} 24. Rxc4 {[%emt 0:01:00]} Rd8 {[%emt 0:03:18]} 25. Rb4 {[%emt 0:04:22]} Rd7 {[%emt 0:00:06]} 26. Kg2 {[%emt 0:06:37]} Bxf4 {[%emt 0:12:00]} 27. Bxf4 {[%emt 0:00:28]} Rxf4 {[%emt 0:00:06]} 28. Rd3 {[%emt 0:02:18]} Re4 {[%emt 0:00:04]} 29. Rdb3 {[%emt 0:02:15]} Ree7 {[%emt 0:01:52]} 30. Kf3 {[%emt 0:00:13]} f5 {[%emt 0:03:01]} 31. Ra3 {[%emt 0:05:26]} a6 {[%emt 0:00:13]} 32. Rab3 {[%emt 0:00:56]} Kf7 {[%emt 0:00:53]} 33. Kg3 {[%emt 0:00:35]} Ke6 {[%emt 0:05:19]} 34. h4 {[%emt 0:00:53]} Kd5 {[%emt 0:03:05]} 35. f3 {[%emt 0:00:13]} h6 {[%emt 0:01:10]} 36. Kf4 {[%emt 0:00:08]} Ke6 {[%emt 0:00:02]} 37. Kg3 {[%emt 0:00:59]} g5 {[%emt 0:00:16]} 38. hxg5 {[%emt 0:00:31]} hxg5 {[%emt 0:00:04]} 39. Re3+ {[%emt 0:00:24]} Kd5 {[%emt 0:00:57]} 40. Reb3 {[%emt 0:00:10]} a5 {[%emt 0:02:55]} 41. Ra4 {[%emt 0:00:30]} Re2 {[%emt 0:00:53]} 42. Rxa5 {[%emt 0:00:05]} Rh7 {[%emt 0:00:15]} 43. Ra8 {[%emt 0:00:20]} Kxd4 {[%emt 0:04:27]} 44. Rc3 {[%emt 0:00:07]} Rxb2 {[%emt 0:01:24]} 45. Rc1 {[%emt 0:00:24]} f4+ {[%emt 0:09:18]} 46. Kg4 {[%emt 0:00:05]} Rg2+ {[%emt 0:00:05]} 47. Kf5 {[%emt 0:00:03]} Ke3 {[%emt 0:02:38]} 48. Ra3+ {[%emt 0:01:34]} Kf2 {[%emt 0:01:05]} 49. Rc2+ {[%emt 0:01:47]} Kg3 {[%emt 0:00:06]} 50. Rxg2+ {[%emt 0:00:07]} Kxg2 {[%emt 0:00:03]} 51. Kxg5 {[%emt 0:01:11]} Kg3 {[%emt 0:00:06]} 52. Rb3 {[%emt 0:00:30]} Rd7 {[%emt 0:01:05]} 53. Kf5 {[%emt 0:00:22]} Rd5+ {[%emt 0:01:17]} 54. Ke4 {[%emt 0:00:04]} Rxc5 {[%emt 0:00:04]} 55. Rxb7 {[%emt 0:00:05]} Rc4+ {[%emt 0:00:32]} 56. Kd3 {[%emt 0:00:52]} Ra4 {[%emt 0:00:07]} 57. Ke2 {[%emt 0:00:57]} Rxa2+ {[%emt 0:00:16]} 58. Kf1 {[%emt 0:00:10]} Rf2+ {[%emt 0:01:41]} 59. Ke1 {[%emt 0:00:53]} Kxf3 {[%emt 0:00:49]} 60. Rb3+ {[%emt 0:00:23]} Kg2 {[%emt 0:00:04]} 61. Rc3 {[%emt 0:00:06]} f3 {[%emt 0:00:33]} 62. Rxc6 {[%emt 0:00:37]} Re2+ {[%emt 0:00:05]} 63. Kd1 {[%emt 0:00:03]} Re5 {[%emt 0:00:39]} 64. Rg6+ {[%emt 0:00:27]} Kf1 {[%emt 0:00:12]} 65. Kd2 {[%emt 0:01:13]} f2 {[%emt 0:00:11]} 66. Rf6 {[%emt 0:00:05]} Re2+ {[%emt 0:03:18]} 67. Kd1 {[%emt 0:00:14]} Re1+ {[%emt 0:00:11]} 68. Kd2 {[%emt 0:00:06]} Kg2 {[%emt 0:00:12]} 69. Rg6+ {[%emt 0:00:08]} Kh3 {[%emt 0:00:09]} 70. Rh6+ {[%emt 0:00:03]} Kg4 {[%emt 0:00:07]} 71. Rg6+ {[%emt 0:00:14]} Kh5 {[%emt 0:00:08]} 0-1

[Event "Charlotte Fall IM-C 2023"]
[Site "Charlotte"]
[Date "2023.11.21"]
[Round "9.4"]
[White "Martin Del Campo Cardenas, Roberto Abel"]
[Black "Wang, Isaac"]
[Result "0-1"]
[ECO "B82"]
[WhiteElo "2212"]
[BlackElo "2377"]
[Annotator "RC"]
[PlyCount "82"]
[EventDate "2023.11.17"]
[EventType "tourn"]
[EventCountry "USA"]
[SourceTitle "playchess.com"]
[Source "ChessBase"]
[SourceQuality "1"]
[TimeControl "5400+30"]

1. e4 {[%emt 0:00:42]} c5 {[%emt 0:00:40]} 2. Nf3 {[%emt 0:00:17]} e6 {[%emt 0:00:24]} 3. Nc3 {[%emt 0:03:48]} a6 {[%emt 0:00:25]} 4. d4 {[%emt 0:02:45]} cxd4 {[%emt 0:00:14]} 5. Nxd4 {[%emt 0:00:02]} Qc7 {[%emt 0:02:24]} 6. Bd3 {[%emt 0:03:42]} Nf6 {[%emt 0:01:09]} 7. Qe2 {[%emt 0:01:55]} d6 {[%emt 0:08:54]} 8. f4 {[%emt 0:03:32]} Be7 {[%emt 0:01:12]} 9. Bd2 {[%emt 0:10:54]} b5 {[%emt 0:06:42]} 10. a3 {[%emt 0:00:50]} Bb7 {[%emt 0:04:13]} 11. O-O {[%emt 0:05:08]} h5 {[%emt 0:09:40]} 12. Rae1 {[%emt 0:04:15]} Qc5 {[%emt 0:13:07]} 13. Kh1 {[%emt 0:02:08]} Nbd7 {[%emt 0:02:27]} 14. Nb3 {[%emt 0:12:07]} Qc7 {[%emt 0:01:18]} 15. e5 {[%emt 0:02:21]} dxe5 {[%emt 0:07:13]} 16. fxe5 {[%emt 0:00:14]} Ng4 {[%emt 0:02:19]} 17. Bf4 {[%emt 0:07:47]} g5 {[%emt 0:03:56]} 18. Bg3 {[%emt 0:00:46]} h4 {[%emt 0:02:19]} 19. Qxg4 {[%emt 0:01:47]} hxg3 {[%emt 0:00:09]} 20. Qxg3 {[%emt 0:00:07]} f5 {[%emt 0:01:11]} 21. Nd4 {[%emt 0:02:29]} Qb6 {[%emt 0:04:59]} 22. Nxe6 {[%emt 0:10:44]} Qxe6 {[%emt 0:00:33]} 23. Bxf5 {[%emt 0:00:04]} Qh6 {[%emt 0:11:37]} 24. h3 {[%emt 0:10:18]} O-O-O {[%emt 0:08:40]} 25. Rd1 {[%emt 0:00:19]} Qh4 {[%emt 0:03:10]} 26. Qd3 {[%emt 0:00:56]} Kb8 {[%emt 0:01:24]} 27. Bxd7 {[%emt 0:02:41]} g4 {[%emt 0:00:19]} 28. Kh2 {[%emt 0:01:39]} Rxd7 {[%emt 0:00:55]} 29. Qxd7 {[%emt 0:00:09]} g3+ {[%emt 0:00:29]} 30. Kg1 {[%emt 0:04:00]} Bc5+ {[%emt 0:00:07]} 31. Rf2 {[%emt 0:00:03]} gxf2+ {[%emt 0:01:06]} 32. Kf1 {[%emt 0:00:11]} Qg3 {[%emt 0:00:24]} 33. Nd5 {[%emt 0:00:10]} Qxe5 {[%emt 0:00:19]} 34. b4 {[%emt 0:00:20]} Re8 {[%emt 0:00:27]} 35. Qc7+ {[%emt 0:00:25]} Qxc7 {[%emt 0:00:18]} 36. Nxc7 {[%emt 0:00:04]} Re1+ {[%emt 0:01:11]} 37. Rxe1 {[%emt 0:00:03]} Bxg2+ {[%emt 0:00:09]} 38. Ke2 {[%emt 0:00:02]} fxe1=Q+ {[%emt 0:00:26]} 39. Kxe1 {[%emt 0:00:04]} Kxc7 {[%emt 0:00:15]} 40. bxc5 {[%emt 0:00:10]} Bxh3 {[%emt 0:00:07]} 41. a4 {[%emt 0:00:35]} Kc6 {[%emt 0:00:22]} 0-1

[Event "Charlotte Fall IM-C 2023"]
[Site "Charlotte"]
[Date "2023.11.21"]
[Round "9.5"]
[White "Lima, Darcy"]
[Black "Guo, Ethan"]
[Result "1-0"]
[ECO "A11"]
[WhiteElo "2405"]
[BlackElo "2026"]
[Annotator "RC"]
[PlyCount "95"]
[EventDate "2023.11.17"]
[EventType "tourn"]
[EventCountry "USA"]
[SourceTitle "playchess.com"]
[Source "ChessBase"]
[SourceQuality "1"]
[TimeControl "5400+30"]

1. c4 {[%emt 0:00:37]} c6 {[%emt 0:00:04]} 2. g3 {[%emt 0:00:10]} d5 {[%emt 0:00:07]} 3. Nf3 {[%emt 0:00:09]} Nf6 {[%emt 0:00:06]} 4. Bg2 {[%emt 0:00:08]} g6 {[%emt 0:00:05]} 5. b3 {[%emt 0:04:21]} Bg7 {[%emt 0:00:22]} 6. d4 {[%emt 0:01:44]} O-O {[%emt 0:04:51]} 7. Bb2 {[%emt 0:01:36]} a5 {[%emt 0:03:46]} 8. Nc3 {[%emt 0:01:54]} Ne4 {[%emt 0:01:11]} 9. O-O {[%emt 0:00:11]} Nxc3 {[%emt 0:00:34]} 10. Bxc3 {[%emt 0:00:03]} a4 {[%emt 0:00:23]} 11. Qd2 {[%emt 0:11:28]} axb3 {[%emt 0:01:50]} 12. axb3 {[%emt 0:00:04]} Rxa1 {[%emt 0:00:17]} 13. Rxa1 {[%emt 0:00:09]} Qb6 {[%emt 0:01:28]} 14. Qa2 {[%emt 0:12:16]} dxc4 {[%emt 0:07:54]} 15. bxc4 {[%emt 0:00:18]} c5 {[%emt 0:00:13]} 16. dxc5 {[%emt 0:03:30]} Qxc5 {[%emt 0:00:09]} 17. Bxg7 {[%emt 0:00:07]} Kxg7 {[%emt 0:00:05]} 18. Qb2+ {[%emt 0:01:01]} Kg8 {[%emt 0:00:45]} 19. Qb5 {[%emt 0:08:07]} Na6 {[%emt 0:01:00]} 20. e3 {[%emt 0:19:31]} Rd8 {[%emt 0:08:22]} 21. h4 {[%emt 0:06:16]} h5 {[%emt 0:00:54]} 22. Nd4 {[%emt 0:03:06]} Qc7 {[%emt 0:01:07]} 23. Nb3 {[%emt 0:02:27]} Nb8 {[%emt 0:06:32]} 24. Qc5 {[%emt 0:02:08]} Na6 {[%emt 0:03:55]} 25. Qxc7 {[%emt 0:00:50]} Nxc7 {[%emt 0:00:11]} 26. Na5 {[%emt 0:03:33]} Ne6 {[%emt 0:04:35]} 27. Nxb7 {[%emt 0:00:13]} Rd7 {[%emt 0:00:10]} 28. Ra8 {[%emt 0:02:21]} Rc7 {[%emt 0:00:04]} 29. c5 {[%emt 0:00:20]} Kg7 {[%emt 0:00:54]} 30. c6 {[%emt 0:00:01]} Nf8 {[%emt 0:00:52]} 31. Nc5 {[%emt 0:00:29]} Nh7 {[%emt 0:00:12]} 32. Na4 {[%emt 0:02:08]} Nf6 {[%emt 0:00:10]} 33. Nc3 {[%emt 0:00:34]} Bh3 {[%emt 0:00:48]} 34. Bxh3 {[%emt 0:00:24]} Rxc6 {[%emt 0:00:04]} 35. Rc8 {[%emt 0:00:07]} Ra6 {[%emt 0:00:04]} 36. Rc7 {[%emt 0:00:16]} e6 {[%emt 0:00:10]} 37. e4 {[%emt 0:02:33]} Ne8 {[%emt 0:00:04]} 38. Rd7 {[%emt 0:00:26]} Nf6 {[%emt 0:00:04]} 39. Rc7 {[%emt 0:00:16]} Ne8 {[%emt 0:00:05]} 40. Rc5 {[%emt 0:00:10]} Nf6 {[%emt 0:00:13]} 41. e5 {[%emt 0:01:09]} Nd7 {[%emt 0:00:03]} 42. Rb5 {[%emt 0:00:02]} Rc6 {[%emt 0:00:07]} 43. Ne4 {[%emt 0:00:13]} Rc1+ {[%emt 0:00:17]} 44. Bf1 {[%emt 0:00:56]} Re1 {[%emt 0:00:13]} 45. f3 {[%emt 0:00:05]} Rd1 {[%emt 0:00:08]} 46. Kf2 {[%emt 0:00:26]} Rd5 {[%emt 0:00:08]} 47. f4 {[%emt 0:00:21]} Rd4 {[%emt 0:00:01]} 48. Nd6 {[%emt 0:01:13]} 1-0